bitfinex/quotes_SOLUSD_20251228
["timestamp","ask_amount","ask_price","bid_price","bid_amount"]
[1766931093007,0.68,124.89,124.84,8.68020493]
[1766931093185,0.68,124.89,124.84,8.01020493]
[1766931093391,0.68,124.89,124.85,0.67]
[1766931101111,0.68,124.88,124.84,0.67]
[1766931102001,0.68,124.88,124.82,0.67]
[1766931102217,0.68,124.86,124.82,0.67]
[1766931103302,0.68,124.86,124.81,8.68207538]
[1766931103621,0.68,124.86,124.81,8.01207538]
[1766931103914,0.68,124.86,124.82,0.67]
[1766931104814,0.68,124.85,124.82,0.67]
[1766931105325,0.68,124.85,124.8,8.70241751]
[1766931105617,0.68,124.85,124.8,0.69]
[1766931106311,0.68,124.85,124.8,8.70273949]
[1766931111513,28.03420384,124.85,124.78,0.66]
[1766931111715,0.71,124.83,124.78,0.66]
[1766931113027,8.01444772,124.82,124.78,0.66]
[1766931113314,0.71,124.81,124.78,0.66]
[1766931122834,8.01444772,124.82,124.78,0.66]
[1766931123134,8.01444772,124.82,124.79,0.66]
[1766931123135,0.71,124.82,124.79,0.66]
[1766931125347,8.01472502,124.83,124.81,0.66]
[1766931125648,0.71,124.84,124.81,0.66]
[1766931127238,0.71,124.86,124.81,0.66]
[1766931127431,0.71,124.86,124.82,8.01153661]
[1766931127630,0.71,124.86,124.82,8.67153661]
[1766931128446,0.71,124.86,124.82,8.01153661]
[1766931128640,0.71,124.86,124.83,0.66]
[1766931132922,0.71,124.86,124.8,44.09268407]
[1766931133139,0.71,124.86,124.8,20.03205128]
[1766931133350,0.71,124.86,124.81,18.44499601]
[1766931134048,0.71,124.86,124.83,8.01086141]
[1766931135028,0.71,124.86,124.83,8.67086141]
[1766931135230,0.71,124.86,124.83,0.66]
[1766931143858,0.71,124.87,124.84,0.72]
[1766931145162,0.71,124.88,124.85,0.72]
[1766931147655,0.71,124.9,124.86,0.72]
[1766931149747,0.71,124.9,124.87,0.72000767]
[1766931151365,0.71,124.9,124.85,42.76939785]
[1766931151366,0.71,124.9,124.85,20.02402883]
[1766931152266,0.71,124.9,124.86,8.00897004]
[1766931153156,0.71,124.9,124.83,28.03813185]
[1766931157261,0.71,124.91,124.83,129.99260593]
[1766931157469,0.71,124.91,124.84,8.10476377]
[1766931157660,0.71,124.91,124.85,14.64]
[1766931158573,0.71,124.91,124.86,28.03139515]
[1766931159075,0.71,124.91,124.86,8.00897004]
[1766931159584,0.71,124.91,124.82,23.23477663]
[1766931159868,0.71,124.91,124.84,8.00969585]
[1766931159869,0.71,124.9,124.84,8.00969585]
[1766931160660,0.71,124.9,124.83,8.01089481]
[1766931161877,8.00651373,124.9,124.83,8.01089481]
[1766931162178,0.71,124.89,124.83,8.01089481]
[1766931162680,8.00709903,124.89,124.83,8.01089481]
[1766931162975,0.71,124.88,124.83,8.01089481]
[1766931168694,8.00600144,124.91,124.83,28.03813185]
[1766931168873,0.66,124.9,124.83,28.03813185]
[1766931184304,0.69,124.89,124.83,28.03813185]
[1766931190702,0.69,124.89,124.82,14.64]
[1766931190703,0.69,124.88,124.82,8.01126391]
[1766931192904,0.69,124.87,124.81,20.02964374]
[1766931201222,0.68,124.86,124.81,20.02964374]
[1766931201520,0.68,124.86,124.8,8.01282051]
[1766931202022,0.68,124.86,124.8,28.04487179]
[1766931219238,0.68,124.88,124.8,28.04487179]
[1766931221640,8.00775296,124.88,124.8,28.04487179]
[1766931221815,0.68,124.87,124.8,28.04487179]
[1766931250770,8.00833272,124.87,124.8,28.04487179]
[1766931251081,0.65,124.86,124.8,28.04487179]
[1766931274293,0.7,124.85,124.8,8.01282051]
[1766931277217,0.7,124.85,124.79,28.04653891]
[1766931277515,0.7,124.85,124.79,42.68653891]
[1766931279115,0.7,124.84,124.79,22.65346261]
[1766931279700,8.00979826,124.85,124.79,22.65346261]
[1766931280003,0.7,124.85,124.79,22.65346261]
[1766931284519,0.7,124.85,124.79,42.68711915]
[1766931302518,0.69,124.88,124.79,144.65443223]
[1766931303042,0.69,124.88,124.8,20.01842616]
[1766931303913,0.69,124.88,124.81,28.04262478]
[1766931304114,0.69,124.88,124.82,14.64]
[1766931306635,0.69,124.88,124.83,28.03813185]
[1766931320947,0.69,124.88,124.82,8.01125432]
[1766931321131,0.67,124.87,124.81,8.01186793]
[1766931321332,0.67,124.87,124.78,8.00576878]
[1766931321533,0.67,124.87,124.79,22.65309816]
[1766931323050,8.00897004,124.86,124.79,22.65309816]
[1766931323245,0.67,124.85,124.79,22.65309816]
[1766931336054,0.67,124.85,124.79,42.6867547]
[1766931337473,0.67,124.85,124.79,82.75406778]
[1766931339160,0.67,124.85,124.79,144.65406778]
[1766931377289,0.68,124.88,124.79,144.65406778]
[1766931379488,8.00771699,124.88,124.79,144.65406778]
[1766931379789,0.68,124.87,124.79,144.65406778]
[1766931383996,0.68,124.91,124.8,6.1281]
[1766931384176,0.68,124.91,124.8,68.0281]
[1766931384377,0.68,124.91,124.81,3.20679841]
[1766931384575,0.68,124.91,124.82,14.64]
[1766931388798,0.68,124.91,124.83,28.03813185]
[1766931395803,0.68,124.9,124.83,28.03813185]
[1766931417624,0.67,124.89,124.83,28.03813185]
[1766931417791,0.67,124.89,124.84,14.64]
[1766931418826,0.67,124.89,124.84,22.64995519]
[1766931423821,0.67,124.88,124.83,8.01074795]
[1766931424004,0.67,124.88,124.82,8.01124858]
[1766931427525,0.67,124.88,124.82,28.04009011]
[1766931464971,0.67,124.88,124.82,89.94009011]
[1766931470871,0.67,124.88,124.82,28.04009011]
[1766931476677,0.67,124.88,124.82,89.94009011]
[1766931481869,0.66,124.91,124.82,89.94009011]
[1766931482673,0.66,124.91,124.82,98.04457262]
[1766931483489,0.66,124.91,124.82,89.94009011]
[1766931485090,0.66,124.91,124.82,98.04457262]
[1766931486894,0.66,124.91,124.82,89.94009011]
[1766931487192,0.66,124.91,124.82,98.04567305]
[1766931488091,0.66,124.91,124.82,138.10335611]
[1766931495493,0.7,124.9,124.82,76.20335611]
[1766931505999,0.7,124.9,124.82,138.10335611]
[1766931524707,0.7,124.9,124.84,28.03588592]
[1766931542836,0.82,124.92,124.84,28.03588592]
[1766931543036,0.82,124.92,124.85,8.10461785]
[1766931543236,0.82,124.92,124.86,14.64]
[1766931544020,0.82,124.92,124.86,22.64336713]
[1766931544221,0.82,124.92,124.87,28.02915031]
[1766931546442,0.1,124.92,124.87,28.02915031]
[1766931547246,0.82,124.92,124.87,28.02915031]
[1766931558765,0.82,124.92,124.87,89.92915031]
[1766931563670,0.1,124.93,124.9,0.71]
[1766931563848,0.1,124.93,124.9,15.33]
[1766931565364,0.1,124.93,124.91,8.00576415]
[1766931565965,0.78,124.93,124.91,8.00576415]
[1766931566164,0.78,124.93,124.9,8.00608599]
[1766931566342,0.78,124.93,124.9,23.33608599]
[1766931566942,0.78,124.93,124.9,22.62608599]
[1766931568669,0.78,124.93,124.9,14.62]
[1766931570472,0.78,124.93,124.9,22.62637886]
[1766931570967,0.78,124.93,124.88,8.00705876]
[1766931572654,0.68,124.92,124.87,46.67331558]
[1766931572857,0.68,124.92,124.87,47.38331558]
[1766931573072,0.68,124.92,124.87,23.3381106]
[1766931573268,0.68,124.92,124.87,8.0081106]
[1766931575776,0.68,124.92,124.87,8.7181106]
[1766931579184,0.68,124.92,124.88,0.71]
[1766931579556,0.68,124.92,124.88,14.62]
[1766931579756,0.68,124.92,124.89,0.71]
[1766931582284,0.68,124.92,124.9,8.00640512]
[1766931589969,0.1,124.93,124.91,0.66]
[1766931590376,0.81,124.93,124.91,0.66]
[1766931591989,0.81,124.93,124.91,8.66572149]
[1766931593876,0.1,124.93,124.91,0.72]
[1766931596092,0.1,124.93,124.91,8.72558789]
[1766931599194,0.1,124.93,124.91,0.72]
[1766931600895,0.1,124.93,124.91,8.72570468]
[1766931601195,0.1,124.93,124.91,8.00570468]
[1766931601385,0.78,124.96,124.92,0.63]
[1766931602892,0.78,124.96,124.93,0.63]
[1766931605995,0.78,124.96,124.92,8.63454946]
[1766931609005,0.78,124.96,124.92,28.01735765]
[1766931609213,0.78,124.96,124.93,0.63]
[1766931610414,0.78,124.96,124.93,8.63396123]
[1766931615895,0.78,124.96,124.93,12.02437505]
[1766931618421,0.78,124.96,124.93,8.63396123]
[1766931643858,0.1,124.96,124.94,0.63]
[1766931644157,0.81,124.96,124.94,0.63]
[1766931645232,0.81,124.96,124.93,8.63396123]
[1766931648045,0.81,124.96,124.93,8.00396123]
[1766931650355,0.81,124.96,124.93,8.63396123]
[1766931672656,0.81,124.96,124.92,23.25483679]
[1766931672862,0.81,124.96,124.92,8.63483679]
[1766931679981,0.81,124.96,124.92,8.00483679]
[1766931681117,8.10277275,124.96,124.91,0.63]
[1766931681286,0.67,124.95,124.91,0.63]
[1766931681504,0.67,124.95,124.91,8.63569355]
[1766931684096,0.67,124.95,124.91,8.00569355]
[1766931684387,0.67,124.95,124.92,0.63]
[1766931685371,0.67,124.95,124.93,8.00448251]
[1766931711098,0.67,124.95,124.91,0.72]
[1766931712319,0.67,124.95,124.88,3.39041382]
[1766931712626,0.67,124.94,124.9,0.72]
[1766931712821,0.67,124.94,124.89,8.726633]
[1766931713403,0.67,124.94,124.87,0.72]
[1766931714428,8.00448251,124.93,124.87,0.72]
[1766931714632,0.67,124.92,124.87,0.72]
[1766931719939,0.1,124.96,124.89,0.72]
[1766931720128,0.77,124.96,124.89,0.72]
[1766931720524,0.1,124.96,124.89,0.72]
[1766931720909,0.1,124.96,124.91,0.72]
[1766931720910,0.77,124.96,124.91,0.72]
[1766931721233,0.67,124.95,124.9,8.1014804]
[1766931721457,0.67,124.95,124.91,0.72]
[1766931722508,8.00340607,124.95,124.9,0.72]
[1766931722713,0.67,124.94,124.9,0.72]
[1766931727347,0.67,124.94,124.91,0.72]
[1766931727942,0.67,124.95,124.92,0.72]
[1766931728234,0.77,124.96,124.92,0.72]
[1766931729442,0.77,124.96,124.93,0.72]
[1766931733319,0.77,124.96,124.92,0.72]
[1766931736042,0.77,124.96,124.92,8.00506222]
[1766931736247,0.77,124.96,124.93,0.71]
[1766931741247,8.10280233,124.96,124.9,8.00640512]
[1766931741454,0.66,124.95,124.9,8.71640512]
[1766931741628,0.66,124.95,124.91,0.71]
[1766931743435,0.66,124.95,124.92,0.71]
[1766931751867,0.66,124.95,124.9,0.71]
[1766931752046,0.66,124.94,124.9,0.71]
[1766931753369,0.66,124.94,124.88,0.71]
[1766931753659,14.62,124.93,124.88,0.71]
[1766931753866,8.66518079,124.92,124.88,0.71]
[1766931754046,0.66,124.91,124.88,0.71]
[1766931754242,0.66,124.91,124.86,0.71]
[1766931759764,0.66,124.91,124.86,8.00882271]
[1766931759942,0.66,124.91,124.87,0.71]
[1766931765965,8.00518079,124.92,124.87,0.71]
[1766931766177,0.71,124.92,124.88,0.72]
[1766931769456,0.71,124.91,124.88,0.72]
[1766931779985,0.71,124.91,124.87,0.69]
[1766931780882,0.72,124.9,124.87,0.69]
[1766931781968,0.72,124.91,124.88,0.69]
[1766931784082,0.72,124.9,124.86,0.69]
[1766931786285,0.72,124.9,124.87,0.69]
[1766931804821,0.72,124.9,124.86,8.00841571]
[1766931805301,0.72,124.9,124.86,8.71841571]
[1766931806398,0.72,124.9,124.85,28.03364036]
[1766931806592,0.72,124.9,124.86,0.71]
[1766931806903,0.66,124.89,124.84,8.00992744]
[1766931807081,0.66,124.87,124.82,0.71]
[1766931807397,0.66,124.87,124.83,0.71]
[1766931808001,0.66,124.87,124.8,0.2]
[1766931808301,0.66,124.87,124.81,0.71]
[1766931808488,0.66,124.85,124.8,0.91]
[1766931808888,0.66,124.84,124.8,0.91]
[1766931810210,0.66,124.83,124.8,0.91]
[1766931810800,0.66,124.83,124.8,0.2]
[1766931811304,0.66,124.83,124.8,0.91]
[1766931812798,15.3,124.85,124.81,0.71]
[1766931814482,22.64980287,124.85,124.81,0.71]
[1766931814688,0.66,124.84,124.8,0.2]
[1766931814887,0.66,124.84,124.8,0.91]
[1766931815504,0.66,124.84,124.81,0.71]
[1766931822712,8.67034402,124.84,124.81,0.71]
[1766931822920,0.66,124.83,124.81,0.71]
[1766931823809,0.66,124.83,124.8,0.2]
[1766931824015,0.66,124.83,124.8,0.91]
[1766931825615,0.66,124.83,124.8,0.2]
[1766931825998,0.7,124.82,124.8,0.2]
[1766931831827,15.34,124.82,124.8,0.2]
[1766931838624,15.34,124.82,124.8,0.9]
[1766931840011,14.64,124.82,124.81,0.7]
[1766931840626,14.64,124.82,124.8,0.9]
[1766931841027,0.69,124.84,124.81,0.7]
[1766931841232,15.33,124.84,124.81,0.7]
[1766931863257,14.64,124.84,124.81,0.7]
[1766931863428,0.66,124.83,124.8,0.2]
[1766931865849,0.66,124.83,124.8,0.87]
[1766931870363,0.66,124.83,124.8,0.2]
[1766931870657,0.66,124.83,124.81,0.67]
[1766931871561,0.66,124.83,124.8,0.87]
[1766931874170,8.6709881,124.83,124.8,0.87]
[1766931880565,14.64,124.82,124.8,0.87]
[1766931882266,0.66,124.81,124.8,0.2]
[1766931882469,14.64,124.82,124.8,0.2]
[1766931882470,15.3,124.82,124.8,0.2]
[1766931883164,15.3,124.82,124.8,0.87]
[1766931891779,23.31161251,124.82,124.8,0.87]
[1766931898801,22.65161251,124.82,124.8,0.2]
[1766931898985,23.35161251,124.82,124.8,0.2]
[1766931899784,15.34,124.82,124.8,0.91]
[1766931901578,14.64,124.82,124.8,0.91]
[1766931906583,0.7,124.83,124.8,0.91]
[1766931906786,14.64,124.82,124.8,0.91]
[1766931906975,0.7,124.83,124.8,0.91]
[1766931907278,14.64,124.82,124.8,0.91]
[1766931908786,0.7,124.83,124.8,0.91]
[1766931908986,14.64,124.82,124.8,0.91]
[1766931919673,14.64,124.82,124.8,0.2]
[1766931919873,15.33,124.82,124.8,0.2]
[1766931920893,15.33,124.82,124.8,0.87]
[1766931926702,0.69,124.81,124.8,0.2]
[1766931927288,14.64,124.82,124.8,0.2]
[1766931932305,14.64,124.82,124.8,0.87]
[1766931937009,22.65162044,124.82,124.8,0.2]
[1766931937209,0.69,124.81,124.79,0.2]
[1766931937510,0.69,124.81,124.78,0.2]
[1766931939415,8.01282051,124.8,124.78,0.2]
[1766931939717,15.33,124.79,124.78,0.2]
[1766931947232,0.43,124.8,124.76,0.2]
[1766931947398,0.43,124.8,124.77,0.7]
[1766931947598,0.43,124.81,124.77,0.7]
[1766931947799,14.64,124.8,124.77,0.7]
[1766931949419,0.43,124.81,124.77,0.7]
[1766931949628,14.64,124.8,124.77,0.7]
[1766931953730,0.43,124.81,124.77,0.7]
[1766931953930,15.07,124.81,124.77,0.7]
[1766931954733,15.07,124.81,124.78,0.71]
[1766931957605,14.64,124.81,124.78,8.01405765]
[1766931957810,14.64,124.81,124.79,0.71]
[1766931961549,17.06870617,124.84,124.79,0.71]
[1766931962641,25.07895929,124.84,124.79,0.71]
[1766931984265,25.07895929,124.84,124.77,15.3]
[1766931984568,47.73339598,124.84,124.77,0.66]
[1766931997271,47.73339598,124.84,124.77,8.01466573]
[1766931997482,25.07895929,124.84,124.78,0.66]
[1766931997774,33.29434649,124.84,124.78,0.66]
[1766932004578,47.93434649,124.84,124.78,0.66]
[1766932013582,8.01025312,124.84,124.79,0.66]
[1766932018396,8.01025312,124.84,124.8,0.72]
[1766932021568,20.0215215,124.87,124.81,0.72]
[1766932021773,20.7415215,124.87,124.8,14.64]
[1766932022189,0.72,124.86,124.8,14.64]
[1766932022593,8.00768737,124.88,124.8,14.64]
[1766932022805,8.00768737,124.88,124.8,34.67109301]
[1766932022806,0.72,124.87,124.8,34.67109301]
[1766932023810,0.72,124.87,124.82,0.72]
[1766932025881,0.72,124.87,124.82,8.01133792]
[1766932026082,0.72,124.87,124.83,0.72]
[1766932026315,0.72,124.88,124.83,0.72]
[1766932027811,0.72,124.88,124.83,8.01049424]
[1766932028018,0.72,124.88,124.84,0.72]
[1766932040426,8.00724421,124.89,124.84,0.72]
[1766932040600,8.69724421,124.89,124.85,0.7]
[1766932040927,8.69724421,124.89,124.85,0.64900001]
[1766932041615,8.00724421,124.89,124.85,0.64900001]
[1766932042201,0.69,124.9,124.85,0.64900001]
[1766932042713,0.69,124.9,124.86,0.7]
[1766932043625,15.33,124.91,124.87,0.7]
[1766932043938,0.69,124.91,124.87,0.7]
[1766932047421,0.69,124.92,124.88,0.7]
[1766932049031,0.1,124.94,124.89,0.7]
[1766932049223,0.79,124.94,124.89,0.7]
[1766932050017,0.1,124.94,124.89,0.7]
[1766932050811,0.79,124.94,124.89,0.7]
[1766932051337,0.79,124.94,124.9,0.7]
[1766932052021,0.1,124.94,124.9,0.7]
[1766932053432,0.1,124.94,124.91,8.00576415]
[1766932053616,0.1,124.94,124.92,0.7]
[1766932056138,0.1,124.96,124.93,0.7]
[1766932057439,0.69,124.95,124.91,0.7]
[1766932060133,0.69,124.95,124.91,8.70573746]
[1766932060313,0.69,124.95,124.92,0.7]
[1766932064149,8.00340072,124.95,124.9,0.7]
[1766932064441,0.69,124.94,124.9,0.7]
[1766932073145,0.66,124.93,124.88,8.00737787]
[1766932073341,0.66,124.93,124.9,0.66]
[1766932078656,8.80419151,124.96,124.91,0.72]
[1766932078835,0.8,124.96,124.91,0.72]
[1766932080233,8.10291644,124.96,124.91,0.72]
[1766932080549,0.7,124.95,124.91,0.72]
[1766932081334,0.8,124.96,124.92,0.72]
[1766932081747,0.1,124.96,124.92,0.72]
[1766932081949,0.1,124.96,124.93,0.72]
[1766932083257,0.8,124.96,124.93,0.72]
[1766932084043,0.8,124.96,124.92,0.72]
[1766932084540,0.7,124.95,124.92,0.72]
[1766932084850,0.7,124.95,124.91,14.62]
[1766932084851,0.7,124.95,124.91,15.34]
[1766932085155,0.7,124.95,124.92,0.72]
[1766932085349,8.10285889,124.96,124.92,0.72]
[1766932085550,0.7,124.95,124.92,0.72]
[1766932086052,8.10285889,124.96,124.92,0.72]
[1766932086261,0.1,124.96,124.93,0.72]
[1766932086469,0.8,124.96,124.93,0.72]
[1766932103458,0.67,124.95,124.89,14.62]
[1766932103779,0.67,124.95,124.9,0.71]
[1766932103979,0.67,124.94,124.9,0.71]
[1766932106278,8.00423525,124.94,124.9,0.71]
[1766932106493,8.67423525,124.94,124.9,0.71]
[1766932106653,8.00423525,124.94,124.9,0.71]
[1766932106854,0.67,124.93,124.9,0.71]
[1766932113493,0.67,124.94,124.9,0.71]
[1766932114092,19.77960332,124.96,124.9,0.71]
[1766932115991,8.20364189,124.95,124.9,0.71]
[1766932116192,0.2,124.94,124.9,0.71]
[1766932126404,8.20364189,124.95,124.91,0.65]
[1766932127503,27.78216413,124.96,124.91,0.65]
[1766932127810,0.2,124.95,124.91,0.65]
[1766932130413,0.2,124.94,124.91,0.65]
[1766932151522,8.20389725,124.94,124.91,0.65]
[1766932159147,8.20389725,124.94,124.89,8.0067247]
[1766932161138,8.20389725,124.94,124.9,0.67]
[1766932162434,0.2,124.94,124.9,0.67]
[1766932162639,18.01041382,124.97,124.91,0.67]
[1766932162640,4.09041382,124.97,124.91,0.67]
[1766932162939,0.7,124.96,124.93,0.67]
[1766932163110,8.7028468,124.96,124.91,0.67]
[1766932163314,0.7,124.95,124.91,0.67]
[1766932163835,8.7028468,124.96,124.91,8.00568248]
[1766932164132,8.7028468,124.96,124.92,0.67]
[1766932164540,0.7,124.96,124.92,0.67]
[1766932165538,12.09259371,124.97,124.93,0.67]
[1766932165715,12.09259371,124.97,124.92,8.00501461]
[1766932165716,0.7,124.96,124.92,8.00501461]
[1766932166931,11.39259371,124.97,124.92,8.00501461]
[1766932167322,3.39041382,124.97,124.91,28.02017452]
[1766932167722,4.09041382,124.97,124.92,0.67]
[1766932169544,4.09041382,124.97,124.94,0.67]
[1766932171819,0.7,124.96,124.94,0.67]
[1766932174032,0.7,124.96,124.92,0.67]
[1766932174344,0.7,124.95,124.92,0.67]
[1766932175044,0.7,124.95,124.9,8.00607041]
[1766932175223,0.7,124.95,124.9,0.67]
[1766932177349,8.70340607,124.95,124.9,0.67]
[1766932177534,0.7,124.94,124.9,0.67]
[1766932184853,0.7,124.94,124.9,8.00604326]
[1766932185059,0.68,124.96,124.91,0.67]
[1766932186252,0.68,124.96,124.91,8.00537936]
[1766932186451,0.68,124.96,124.92,0.7]
[1766932188359,0.68,124.96,124.89,34.6362563]
[1766932188360,0.68,124.95,124.9,8.00617119]
[1766932188551,0.68,124.95,124.91,0.7]
[1766932196979,0.68,124.95,124.91,8.70536816]
[1766932197159,0.68,124.95,124.92,0.7]
[1766932208783,3.39041382,124.97,124.93,0.7]
[1766932208988,0.7,124.96,124.93,0.7]
[1766932210784,0.7,124.96,124.93,8.70433051]
[1766932210980,3.39041382,124.97,124.93,8.00433051]
[1766932211197,3.39041382,124.97,124.94,0.7]
[1766932211402,3.39041382,124.97,124.93,8.00433051]
[1766932211685,0.7,124.96,124.91,14.62]
[1766932212191,0.7,124.96,124.91,22.62560032]
[1766932213289,0.7,124.96,124.92,0.68]
[1766932213758,8.00309399,124.96,124.91,14.62]
[1766932213962,0.7,124.95,124.9,15.3]
[1766932214295,0.7,124.95,124.91,0.68]
[1766932214464,0.7,124.95,124.9,15.3]
[1766932217872,0.68,124.94,124.9,15.3]
[1766932219194,0.68,124.94,124.9,0.68]
[1766932220687,0.68,124.94,124.9,8.68633259]
[1766932223796,0.68,124.94,124.9,8.00633259]
[1766932224001,0.68,124.94,124.91,0.68]
[1766932225099,0.68,124.96,124.92,0.68]
[1766932235914,0.68,124.96,124.92,8.00509529]
[1766932236220,0.68,124.96,124.93,0.68]
[1766932237508,12.0723677,124.97,124.93,0.68]
[1766932238516,3.39041382,124.97,124.94,0.68]
[1766932238692,4.07041382,124.97,124.94,0.68]
[1766932239603,3.39041382,124.97,124.94,0.68]
[1766932247526,4.11041382,124.97,124.94,0.68]
[1766932251325,3.39041382,124.97,124.94,0.68]
[1766932251525,4.06041382,124.97,124.94,0.68]
[1766932251920,4.06041382,124.97,124.95,0.66]
[1766932254030,3.39041382,124.97,124.95,0.66]
[1766932258034,4.06041382,124.97,124.95,0.66]
[1766932259010,3.39041382,124.97,124.95,8.66319647]
[1766932263842,3.39041382,124.97,124.95,0.66]
[1766932270152,0.67,124.96,124.93,8.66448251]
[1766932270536,0.67,124.96,124.93,8.00448251]
[1766932270762,4.06041382,124.97,124.94,0.66]
[1766932271147,4.06041382,124.97,124.94,8.66361111]
[1766932272766,3.39041382,124.97,124.92,22.62488619]
[1766932273053,0.67,124.96,124.93,0.66]
[1766932273453,0.67,124.96,124.94,0.66]
[1766932285342,0.67,124.96,124.93,8.00447974]
[1766932285968,0.67,124.96,124.93,8.68447974]
[1766932295476,0.67,124.96,124.93,8.00447974]
[1766932295675,0.67,124.96,124.93,8.68447974]
[1766932296874,4.05041382,124.97,124.94,0.68]
[1766932298778,4.05041382,124.97,124.94,8.68371626]
[1766932305479,4.05041382,124.97,124.94,8.00371626]
[1766932305692,3.39041382,124.97,124.95,0.68]
[1766932305892,4.08041382,124.97,124.95,0.68]
[1766932306265,1e-08,124.97,124.95,0.68]
[1766932306466,1e-08,124.97,124.96,0.68]
[1766932306696,1e-08,124.97,124.96,8.68256081]
[1766932322810,0.72000001,124.97,124.96,8.00256081]
[1766932323384,1e-08,124.97,124.96,8.00256081]
[1766932325407,1e-08,124.97,124.96,8.68256081]
[1766932325710,1e-08,124.97,124.96,8.00256081]
[1766932350732,1e-08,124.97,124.95,23.30291789]
[1766932351026,1e-08,124.97,124.94,8.00362204]
[1766932351217,0.71000001,124.97,124.92,8.00473731]
[1766932351417,0.71000001,124.97,124.92,23.30473731]
[1766932357541,0.71000001,124.97,124.92,22.62473731]
[1766932357728,0.71000001,124.97,124.89,0.68]
[1766932357729,0.71,124.96,124.89,0.68]
[1766932357907,0.71,124.95,124.87,8.00815526]
[1766932358114,0.71,124.95,124.87,23.30815526]
[1766932358712,0.71,124.94,124.85,0.68]
[1766932358933,10.43767296,124.92,124.84,0.68]
[1766932359125,0.71,124.89,124.83,23.51057775]
[1766932360716,0.71,124.89,124.83,22.83057775]
[1766932360931,0.71,124.89,124.84,0.68]
[1766932361238,0.71,124.89,124.85,8.00961153]
[1766932361425,0.71,124.89,124.85,8.68961153]
[1766932362023,0.71,124.89,124.85,8.00961153]
[1766932362223,0.71,124.89,124.85,8.68961153]
[1766932367933,0.71,124.89,124.85,0.68]
[1766932368238,0.71,124.89,124.87,0.68]
[1766932368421,0.71,124.89,124.86,15.3]
[1766932372747,0.71,124.89,124.85,8.00937649]
[1766932372948,0.71,124.89,124.85,14.62]
[1766932373839,0.68,124.88,124.83,0.2]
[1766932374339,0.68,124.88,124.83,0.89]
[1766932374543,0.58,124.87,124.81,0.2]
[1766932374732,8.00897004,124.86,124.81,0.2]
[1766932375060,0.58,124.85,124.81,0.2]
[1766932377570,0.58,124.85,124.81,0.89]
[1766932377748,0.58,124.85,124.81,8.9020845]
[1766932378072,0.58,124.85,124.82,0.69]
[1766932378237,0.58,124.87,124.82,0.69]
[1766932379440,0.58,124.87,124.82,8.01112151]
[1766932379651,0.58,124.87,124.83,0.69]
[1766932381169,0.58,124.87,124.83,8.70081564]